Cogmind - Beta 13 @@@ ROGUE MODE // 2024.06.06 @ 15:08:40 Player: Johge Result: Destroyed by G-47 Trooper with Particle Gun Performance ------------- Evolutions (2) 1000 Regions Visited (5) 1000 Robots Destroyed (89) 445 Value Destroyed (2000) 2000 Prototype IDs (2) 40 Alien Tech Used (0) 0 Bonus (134) 134 TOTAL SCORE: 4619 Bonus ------- High Alert Combat Kills 80 Follower Combat Kills 70 Friendly Fire -16 Cogmind --------- Core Integrity 0/550 Matter 258/300 Energy 160/280 System Corruption 0% Temperature Cool (35) Movement Core (850) Ox16 Location -8/Materials Parts ------- > --- POWER (1) -------- Heavy Ion Engine > --- PROPULSION (4) --- (None) > --- UTILITY (4) ------ High-capacity Storage Unit > --- WEAPON (2) ------- Assault Rifle Light Assault Rifle > --- INVENTORY (20) --- Heavy Ion Engine Light Angular Momentum Engine High-capacity Matter Pod (200) Structural Scanner Hardened Medium Armor Plating Hacking Suite Hacking Suite Datajack Mining Laser Peak State ------------ > --- POWER ------------ Deuterium Engine > --- PROPULSION ------- Light Treads Light Treads Light Treads > --- UTILITY ---------- Improved Heat Sink High-capacity Storage Unit Transport Network Coupler Hardened Medium Armor Plating > --- WEAPON ----------- Beamcaster Autogun > --- INVENTORY -------- Heavy Ion Engine Heavy Ion Engine Light Angular Momentum Engine High-capacity Matter Pod Structural Scanner Light Armor Plating Hacking Suite Hacking Suite Assault Rifle Light Assault Rifle Heavy Assault Rifle Datajack Mining Laser [Rating: 23] Favorites ----------- Power Ion Engine Engine Ion Engine Propulsion Light Treads Treads Light Treads Utility Targeting Computer Device Improved Sensor Array Storage High-capacity Storage Unit Processor Targeting Computer Protection Hardened Medium Armor Plating Weapon Autogun Energy Gun Small Laser Ballistic Gun Autogun Special Weapon Mining Laser Special Melee Weapon Datajack Build | -11 -10 -10 -9 -9 -8 ------- Run | Yrd Mat Min Mat Sto Mat Slots Evolved 4 | . . . 2 . 2 Power . | . . . . . . Propulsion 2 | . . . 1 . 1 Utility 2 | . . . 1 . 1 Weapon . | . . . . . . Parts Attached 54 | 6 3 . 11 17 17 Power 8 | 1 . . 2 2 3 Engine 8 | 1 . . 2 2 3 Core . | . . . . . . Reactor . | . . . . . . Propulsion 18 | 2 . . 5 6 5 Treads 18 | 2 . . 5 6 5 Leg . | . . . . . . Wheel . | . . . . . . Hover . | . . . . . . Flight . | . . . . . . Utility 13 | 1 2 . 3 3 4 Device 5 | . . . 1 2 2 Storage 4 | 1 1 . 2 . . Processor 2 | . 1 . . 1 . Hackware . | . . . . . . Protection 2 | . . . . . 2 Artifact . | . . . . . . Weapon 15 | 2 1 . 1 6 5 Energy Gun 3 | 1 . . . . 2 Energy Cannon . | . . . . . . Ballistic Gun 10 | 1 1 . 1 4 3 Ballistic Cannon . | . . . . . . Launcher . | . . . . . . Special Weapon 1 | . . . . 1 . Impact Weapon . | . . . . . . Slashing Weapon . | . . . . . . Piercing Weapon . | . . . . . . Special Melee Weapon 1 | . . . . 1 . Unidentified Prototypes . | . . . . . . Parts Lost 26 | . . . 1 7 18 Power 2 | . . . . 1 1 Propulsion 10 | . . . . 2 8 Utility 7 | . . . . 3 4 Weapon 7 | . . . 1 1 5 Highest Loss Streak 6 | . . . 1 3 6 To Critical Strikes . | . . . . . . Average Slot Usage (%) 92 | . 99 100 100 94 77 Engine 11 | . 14 14 11 11 8 Treads 28 | . 28 28 33 32 21 Device 6 | . . . 10 10 9 Storage 11 | . 14 14 11 11 9 Processor 10 | . 13 14 11 10 7 Protection 1 | . . . . . 5 Energy Gun 1 | . 3 . . . 5 Ballistic Gun 19 | . 24 28 22 14 12 Naked Turns . | . . . . . . Heaviest Build 66 | 13 30 30 53 56 66 Greatest Support 83 | 40 40 40 69 69 83 Greatest Overweight (x) 18 | 3 . . . 1 18 Average Overweight (x) . | . . . . . 1 Largest Inventory Capacity 20 | 8 15 15 20 20 20 Average Capacity 17 | 7 14 15 19 20 20 Most Carried 19 | 3 13 15 19 18 15 Average Carried 11 | 1 7 14 15 14 13 Final Capacity 20 | 8 15 15 20 20 20 Final Carried 16 | 3 13 15 16 15 9 Class Distribution -------------------- 81% | Mutant 18% | Scavenger-Mutant Dominant Class ---------------- Mutant | -10/Materials Mutant | -10/Mines Mutant | -9/Materials Mutant | -9/Storage Scavenger-Mutant | -8/Materials Resources | -11 -10 -10 -9 -9 -8 ----------- Run | Yrd Mat Min Mat Sto Mat Matter Collected 2320 | 385 577 42 265 472 579 Remotely . | . . . . . . Salvage Created 3212 | 252 595 65 402 710 1188 Parts 221 | 24 31 6 27 64 69 Haulers Intercepted 10 | . 2 . 2 3 3 Recyclers Shooed 6 | . 1 . 3 1 1 Parts Field Recycled . | . . . . . . Retrieved Matter . | . . . . . . Parts Self-Destructed . | . . . . . . Prevented . | . . . . . . Kills | -11 -10 -10 -9 -9 -8 ------- Run | Yrd Mat Min Mat Sto Mat Combat Hostiles Destroyed 57 | . 9 3 6 13 26 Guns 57 | . 9 3 6 13 26 Classes Destroyed 11 | 3 5 . 1 1 1 Worker 5 | 4 . . . 1 . Builder 2 | . . . . 1 1 Tunneler 6 | 6 . . . . . Hauler 10 | . 2 . 2 3 3 Recycler 4 | 1 2 . . . 1 Operator 2 | . 1 . . 1 . Watcher 3 | . 1 . 1 1 . Swarmer 20 | . 3 2 . 4 11 Grunt 22 | . 6 1 4 2 9 Sentry 14 | . . . 2 7 5 Hunter 1 | . . . . . 1 Best Kill Streak 7 | 3 4 2 2 7 6 Combat Bots Only 5 | . 4 2 2 4 5 Max Kills in Single Turn 2 | 1 1 1 2 1 2 Gunslinging 1 | . . . 1 . . Exploded . | . . . . . . Melee . | . . . . . . Uniques/NPCs Destroyed . | . . . . . . Combat | -11 -10 -10 -9 -9 -8 -------- Run | Yrd Mat Min Mat Sto Mat Hostile Shots Fired 357 | . 37 11 22 83 204 Missed 90 | . 14 5 2 24 45 Damage Taken 4354 | . 240 97 233 1309 2475 Core 904 | . 31 17 10 284 562 Absorbed by Shields . | . . . . . . Core Remaining (%) 68 | 100 . 80 . 26 . Volleys Fired 304 | 25 54 6 27 101 91 Largest 2 | 2 2 2 2 2 2 Hottest 100 | 60 60 43 43 100 98 Shots Fired 526 | 50 108 12 53 126 177 Gun 494 | 50 108 12 53 94 177 Cannon . | . . . . . . Launcher . | . . . . . . Special 32 | . . . . 32 . Kinetic 421 | 25 101 12 53 94 136 Thermal 105 | 25 7 . . 32 41 Explosive . | . . . . . . Electromagnetic . | . . . . . . Robot Hit Streak 18 | 7 18 9 6 17 12 Robot Miss Streak 12 | 3 12 3 4 2 7 Penetration Max . | . . . . . . Secondary Targets 10 | . . 1 2 . 7 Max Gunslinging Chain 1 | . . 1 1 . 1 Shots Hit Robots 323 | 28 70 6 32 72 115 Core Hits 139 | 12 24 5 14 29 55 Critical Kills 1 | . . . 1 . . Critical Parts Destroyed 3 | . . . . 1 2 Critical Strikes 8 | . . . 1 1 6 Burn 4 | . . . . . 4 Destroy 4 | . . . 1 1 2 Melee Attacks 1 | . . . . 1 . Impact . | . . . . . . Slashing . | . . . . . . Piercing . | . . . . . . Sneak Attacks 1 | . . . . 1 . Combat Hostiles . | . . . . . . Follow-up Attacks . | . . . . . . Damage Inflicted 4734 | 329 961 87 481 1054 1822 Guns 4613 | 329 959 87 481 997 1760 Cannons . | . . . . . . Explosions . | . . . . . . Melee . | . . . . . . Ramming 97 | . 2 . . 33 62 Kinetic 3961 | 164 935 87 481 997 1297 Thermal 676 | 165 24 . . 24 463 Explosive . | . . . . . . Electromagnetic . | . . . . . . Impact . | . . . . . . Slashing . | . . . . . . Piercing . | . . . . . . Highest Corruption 10 | . . . . 10 . Average Corruption 9 | . . . . 9 . Corruption Purged . | . . . . . . Corruption Blocked . | . . . . . . Effects 10 | . . . . 10 . Message Errors 1 | . . . . 1 . Matter Fused 4 | . . . . 4 . Heat Flow Errors 1 | . . . . 1 . Data Loss (minor) 4 | . . . . 4 . Overload Shots . | . . . . . . Overflow Damage 78 | . . . . . 78 Projectiles . | . . . . . . Explosions 77 | . . . . . 77 Melee 1 | . . . . . 1 Knockbacks 2 | . . . . 1 1 Impact 2 | . . . . 1 1 Kinetic . | . . . . . . Secondary . | . . . . . . Self-Inflicted Damage 88 | . . . . . 88 Shots 1 | . . . . . 1 Rammed 9 | . 1 . . 2 6 Targets Rammed 10 | . 1 . . 3 6 Kicked . | . . . . . . Crushed 1 | . . . . 1 . Highest Temperature 208 | . 19 2 11 208 123 Average Temperature 34 | . 3 1 7 57 31 Received Heat Transfer 1176 | . 102 . 114 213 747 Effects 1 | . . . . 1 . Energy Bleed 1 | . . . . 1 . Siege Activations . | . . . . . . Robots Corrupted . | . . . . . . Combat Hostiles . | . . . . . . Parts Fried . | . . . . . . Impact Corruptions 1 | . . . . . 1 Robots Melted . | . . . . . . Combat Hostiles . | . . . . . . Parts Melted 3 | . . . 1 . 2 Heat Transferred 1622 | 375 50 . . 50 1147 Parts Sabotaged . | . . . . . . Parts Stolen . | . . . . . . Parts Stripped . | . . . . . . Power Chain Reactions . | . . . . . . Alert | -11 -10 -10 -9 -9 -8 ------- Run | Yrd Mat Min Mat Sto Mat Peak Influence 603 | 55 221 173 242 260 603 Initial 35 | . 35 27 . 20 35 Average 154 | 27 121 64 89 108 371 Maximum Alert Level 2 | . 1 . 1 1 2 Low Security (%) 74 | 100 91 100 92 79 16 Level 1 15 | . 8 . 7 20 38 Level 2 10 | . . . . . 45 Level 3 . | . . . . . . Level 4 . | . . . . . . Level 5 . | . . . . . . High Security . | . . . . . . Max Security . | . . . . . . Squads Dispatched 8 | . 1 . 1 1 5 Investigation 1 | . 1 . . . . Extermination . | . . . . . . Reinforcement 4 | . . . 1 1 2 Assault . | . . . . . . Garrison 3 | . . . . . 3 Intercept . | . . . . . . Searches Triggered . | . . . . . . Construction Impeded . | . . . . . . Haulers Reinforced . | . . . . . . Active Scanning Responses . | . . . . . . Cargo Convoy Interrupts . | . . . . . . Stealth | -11 -10 -10 -9 -9 -8 --------- Run | Yrd Mat Min Mat Sto Mat Distress Signals 5 | . . . 2 1 2 Communications Jammed . | . . . . . . Distress Signals . | . . . . . . Times Spotted 97 | . 21 5 12 16 43 Peak Tracking Total 6 | . 6 2 4 4 5 Tactical Retreats 10 | . . . . . 10 Traps | -11 -10 -10 -9 -9 -8 ------- Run | Yrd Mat Min Mat Sto Mat Traps Triggered 3 | . . . . 3 . Indirectly . | . . . . . . Trap Hack Attempts . | . . . . . . Triggered . | . . . . . . Disarmed . | . . . . . . Reprogrammed . | . . . . . . Reused . | . . . . . . Traps Extracted . | . . . . . . Installed . | . . . . . . Triggered . | . . . . . . Machines | -11 -10 -10 -9 -9 -8 ---------- Run | Yrd Mat Min Mat Sto Mat Machines Disabled 4 | . . . 1 . 3 Max in Single Turn 2 | . . . 1 . 2 Machines Repaired . | . . . . . . Machines Dismantled . | . . . . . . Machines Sabotaged . | . . . . . . Overloaded Fab Kills . | . . . . . . Hacking | -11 -10 -10 -9 -9 -8 --------- Run | Yrd Mat Min Mat Sto Mat Machines Accessed 9 | . 4 1 . 2 2 Terminals 6 | . 3 . . 2 1 Fabricators . | . . . . . . Repair Stations . | . . . . . . Recycling Units 1 | . 1 . . . . Scanalyzers . | . . . . . . Garrison Access 1 | . . . . . 1 Total Hacks 26 | . 11 1 . 5 9 Successful 16 | . 8 1 . 3 4 Failed 10 | . 3 . . 2 5 Catastrophic 1 | . . . . . 1 Database Lockouts . | . . . . . . Manual 10 | . 3 . . 4 3 Terminals 19 | . 7 . . 5 7 Fabricators . | . . . . . . Repair Stations . | . . . . . . Recycling Units 4 | . 4 . . . . Scanalyzers . | . . . . . . Garrison Access 2 | . . . . . 2 Terminal Hacks 14 | . 6 1 . 3 4 Record 1 | . 1 . . . . Robot Analysis 1 | . . . . . 1 Prototype ID Bank 1 | . 1 . . . . Open Door 1 | . . 1 . . . Alert Level 4 | . 2 . . 1 1 Locate Traps 3 | . 2 . . . 1 Zone Layout 3 | . . . . 2 1 Fabricator Hacks . | . . . . . . Repair Station Hacks . | . . . . . . Recycling Unit Hacks 2 | . 2 . . . . Report Inventory 1 | . 1 . . . . Retrieve Components 1 | . 1 . . . . Scanalyzer . | . . . . . . Garrison Access Hacks . | . . . . . . Unauthorized Hacks . | . . . . . . Terminals . | . . . . . . Fabricators . | . . . . . . Repair Stations . | . . . . . . Recycling Units . | . . . . . . Scanalyzers . | . . . . . . Garrison Access . | . . . . . . Data Cores Recovered 1 | . 1 . . . . Used 1 | . 1 . . . . Hacking Detections 7 | . 3 . . 2 2 Full Trace Events 2 | . 1 . . . 1 Feedback Events . | . . . . . . Feedback Blocked . | . . . . . . Robot Schematics Acquired . | . . . . . . Robots Built . | . . . . . . Authchips . | . . . . . . Time . | . . . . . . Total Robot Build Rating . | . . . . . . Part Schematics Acquired . | . . . . . . Parts Built . | . . . . . . Authchips . | . . . . . . Time . | . . . . . . Total Part Build Rating . | . . . . . . Parts Repaired . | . . . . . . Time . | . . . . . . Parts Recycled . | . . . . . . Recycled Matter . | . . . . . . Retrieved Matter . | . . . . . . Retrieved Components 10 | . 10 . . . . Parts Scanalyzed . | . . . . . . Part Schematics Acquired . | . . . . . . Parts Damaged . | . . . . . . Bothacking | -11 -10 -10 -9 -9 -8 ------------ Run | Yrd Mat Min Mat Sto Mat Used RIF Installer . | . . . . . . Robots Hacked 1 | . . . . 1 . Non-combat 1 | . . . . 1 . Combat . | . . . . . . Robot Hacks Applied 1 | . . . . 1 . no_distress 1 | . . . . 1 . Relay Couplers Released . | . . . . . . Fabnet Peak Effective % . | . . . . . . Robots Rewired 1 | . . 1 . . . Allies Hacked . | . . . . . . Hacks Repelled . | . . . . . . Allies | -11 -10 -10 -9 -9 -8 -------- Run | Yrd Mat Min Mat Sto Mat Total Allies 6 | . . 6 . . . Largest Group 4 | . . 4 4 . . Highest-Rated Group 76 | . . 76 76 . . Highest-Rated Ally 31 | . . 31 31 . . Total Orders . | . . . . . . Ally Attacks 37 | . . 12 25 . . Total Damage 382 | . . 133 249 . . Kills 7 | . . 2 5 . . Allies Corrupted . | . . . . . . Allies Melted . | . . . . . . Intel | -11 -10 -10 -9 -9 -8 ------- Run | Yrd Mat Min Mat Sto Mat Robot Analysis Total 1 | . . . . . 1 Derelict Logs Recovered 1 | . . 1 . . . Drone Launches . | . . . . . . Drone Recoveries . | . . . . . . Exploration | -11 -10 -10 -9 -9 -8 ------------- Run | Yrd Mat Min Mat Sto Mat Turns Passed 3969 | 386 804 443 622 823 891 Spaces Moved 1661 | 156 387 264 322 306 226 Core 21 | 6 . . . . 15 Treads 1640 | 150 387 264 322 306 211 Legs . | . . . . . . Wheels . | . . . . . . Hover . | . . . . . . Flight . | . . . . . . Fastest Speed 50 | 50 160 160 160 160 160 Average Speed 173 | 156 160 160 160 161 257 Slowest Speed 950 | 200 160 160 160 240 950 Overloaded Moves . | . . . . . . Propulsion Burnouts . | . . . . . . Robots Hopped . | . . . . . . Cave-ins Triggered 2 | . . . . 2 . Exploration Rate (%) 42 | 11 75 58 25 57 27 Regions Visited 5 Branch Regions 2 Pre-discovered Areas 1 | . . 1 . . . Known Exits Taken . | . . . . . . Unknown Exits Taken 5 | 1 1 1 1 1 . Scrap Searched 3 | . . 3 . . . Spaces Dug 3 | . . . . 3 . Terrain Destroyed 41 | . . . . 3 38 Melee . | . . . . . . Projectile 3 | . . . . 3 . AOE 38 | . . . . . 38 Terrain Rammed . | . . . . . . Walls Destroyed . | . . . . . . Machines Disabled . | . . . . . . Actions | -11 -10 -10 -9 -9 -8 --------- Run | Yrd Mat Min Mat Sto Mat Total 2193 | 248 473 274 381 451 366 Wait 90 | 53 12 . . 12 13 Move 1656 | 155 386 263 321 305 226 Hop . | . . . . . . Pick Up 61 | 9 14 3 13 12 10 Fast Attach . | . . . . . . Attach 37 | 6 1 . 4 13 13 Detach . | . . . . . . Swap 17 | . 2 . 7 4 4 Drop 16 | . 3 1 9 . 3 Fire 304 | 25 54 6 27 101 91 Melee 1 | . . . . 1 . Ram 1 | . . . . . 1 Kick . | . . . . . . Crush 9 | . 1 . . 3 5 Escape Stasis . | . . . . . . Rewire 1 | . . 1 . . . Trap . | . . . . . . Miscellaneous . | . . . . . . Route ------- -11/Scrapyard -10/Materials (discovered 2 exits: [*Mat] / *Min) -10/Mines -9/Materials (discovered 2 exits: *Sto x2) -9/Storage (discovered 2 exits: *Mat / [Rec]) -8/Materials History --------- Turn | Location | Event 8 | -11/Scrapyard | Discovered new exit (range 15) 387 | -11/Scrapyard | Entered Materials 388 | -10/Materials | Build established: Mutant 550 | -10/Materials | Discovered new exit (range 14) 689 | -10/Materials | Discovered new exit (range 10) 1191 | -10/Materials | Entered Mines 1199 | -10/Mines | Assisted by bots powering up and referring to "LRC-V3" 1241 | -10/Mines | Learned location of Zion (-7) 1295 | -10/Mines | Met a Derelict who couldn't figure out how to use a Trap Extractor 1385 | -10/Mines | Found a hidden stash of uninstalled traps 1478 | -10/Mines | Assembled infested the area 1531 | -10/Mines | Discovered new exit (range 8) 1634 | -10/Mines | Entered Materials 1634 | -9/Materials | Accompanied by 4 allies 1634 | -9/Materials | Evolved 2 slots: Propulsion x1, Utility x1 1639 | -9/Materials | Led the pair of lost Derelicts to an unsafe place 1705 | -9/Materials | Discovered new exit (range 13) 2103 | -9/Materials | Discovered new exit (range 7) 2256 | -9/Materials | Entered Storage 2598 | -9/Storage | Lost 3 parts (1p1n1w) 2649 | -9/Storage | Discovered new exit (range 15) 2772 | -9/Storage | Crushed by falling debris 2803 | -9/Storage | Lost 3 parts (1n2u) 2826 | -9/Storage | Crushed by falling debris 2826 | -9/Storage | Core integrity fell below 50% 2826 | -9/Storage | System corruption reached 10% 3010 | -9/Storage | Discovered new exit (range 16) 3079 | -9/Storage | Entered Materials 3079 | -8/Materials | Evolved 2 slots: Propulsion x1, Utility x1 3227 | -8/Materials | Garrison activated, responded to threat 3277 | -8/Materials | Lost 3 parts (3n) 3377 | -8/Materials | Build established: Scavenger-Mutant 3810 | -8/Materials | Core integrity fell below 50% 3832 | -8/Materials | Lost 6 parts (2n3u1w) 3946 | -8/Materials | Lost 3 parts (1p2w) 3959 | -8/Materials | Core integrity fell below 20% 3970 | -8/Materials | Destroyed by G-47 Trooper with Particle Gun Last Messages --------------- U-05 Engineer lays Concrete. K-01 Serf collects debris. U-05 Engineer lays Concrete. K-01 Serf collects debris. U-05 Engineer lays Concrete. K-01 Serf collects debris. U-05 Engineer lays Concrete. K-01 Serf collects debris. U-05 Engineer lays Concrete. K-01 Serf collects debris. U-05 Engineer lays Concrete. K-01 Serf collects debris. U-05 Engineer lays Concrete. K-01 Serf collects debris. U-05 Engineer lays Concrete. U-05 Engineer builds a Wall. U-05 Engineer lays Concrete. K-01 Serf collects debris. U-05 Engineer lays Concrete. Critical hit (Burn: +37). Map ----- +----------------------------------------------------+ | ????????????????????????????????????????????? | | ????????????????????????????????????????????? | | ????????????????????????????????????????????? | | ????????????????????????????????????????????? | | ????????????????????????????????????????????? | | ????????????????????????????????????????????? | | ????????????????????????????????????????????? | | ????????????????????????????????????????????? | | ????????????????? ####+?????????????????????? | | ???????????????# #????????????????????? | | ???????????????# #????????????????????? | | ??????????????## ! ##???????????????????? | | ??????????????## #???????????????????? | | ??????????????# ###??????????????????? | | ?????????????## k #??????????????????? | | ?????????????# # #??????????????????? | | ?????????????# u ku #??????????????????? | | ?????????????## # ##?????????????????? | | ?????????????# # ??????????????????? | | ??????????????# ##?????????????????? | | ??????????????# ################ !]]% | | ??????????????# *%[ %[%!!%%=[%=]%]* | | ??????????????# ###%########## ]]] # | | ??????????????# ### #??????????????? | | ??????????????+ ;g;;;;;#?# #??????????????? | | ??????????????# ;g@ #?#[#??????????????? | | ??????????????# # #?#*#??????????????? | | ??????????????# # " #?# #??????????????? | | ??????????????# ?# T #?# #??????????????? | | ??????????????# ?# " #?# #??????????????? | | ??????????????# ??# #?# #??????????????? | | ??????????????# ??########?# #??????????????? | | ??????????????#????????????# #??????????????? | | ???????????????????????????# #??????????????? | | ???????????????????????????# #??????????????? | | ???????????????????????????# #??????????????? | | ???????????????????????????# #??????????????? | | ???????????????????????????# #??????????????? | | ???????????????????????????# #??????????????? | | ???????????????????????????# #??????????????? | | ???????????????????????????# #??????????????? | | ???????????????????????????# #??????????????? | | ???????????????????????????# #??????????????? | | ???????????????????????????# #??????????????? | | ???????????????????????????# #??????????????? | | ???????????????????????????# #??????????????? | | ???????????????????????????# #??????????????? | | ???????????????????????????# #??????????????? | | ???????????????????????????# #??????????????? | | ???????????????????????#???# #??????????????? | +----------------------------------------------------+ Best States ------------- Heat Dissipation 45 Energy Generation 18 Energy Capacity 280 Matter Stores 300 Matter Capacity 300 Sight Range 16 Robot Scan Range 15 Terrain Scan Density 10 Armor Coverage 225 Evasion (%) 40 Targeting Accuracy 5 Recoil Reduction 4 Item Schematics ----------------- None Robot Schematics ------------------ None Fabricated ------------ Nothing Alien Tech Used ----------------- None Achievements -------------- A New Friend Challenges ------------ None Game ------ Seed MicroMiniSubcomponent Manual? 0 Play Time 00:33:48 Cumulative 21.3 hours Start 2024.06.06 @ 14:36:00 End 2024.06.06 @ 15:08:40 Sessions 1 Manual Loads 0 Difficulty Rogue Special Mode None Game No. 35 Rogue 35 Adventurer 0 Explorer 0 Win Type - Total 0 Types 0/0/0/0/0/0/0/0/0 Lore% 9 Gallery% 22 Achievement% 18 Wizard Run 0 Options --------- Layout 1 ASCII 0 Keyboard 0 Movement Mouse Keybinds 0 Fullscreen 1 Font 24/Smallcaps Map View 50x35 Zoom Use 0% Tactical HUD 0 Map Filters NONE Filters NONE Steam 1 RUN: 640a7f9f-213f-48e8-a0c9-17248f197814